[Event "Late-Titled-Tuesday-Blitz-April-16-2024"]
[Site "Chess.com"]
[Date "2024.04.16"]
[Round "3"]
[White "AlainBruxelles"]
[Black "SCIM"]
[Result "1-0"]
[WhiteElo "2366"]
[BlackElo "2565"]
[TimeControl "180+1"]
[EndTime "14:28:28 PDT"]
[Termination "AlainBruxelles won on time"]

1. e4 {[%clk 0:02:58.6]} 1... d5 {[%clk 0:02:58.8]} 2. exd5 {[%clk 0:02:57.8]}
2... Qxd5 {[%clk 0:02:59.7]} 3. c4 {[%clk 0:02:58.1]} 3... Qd8 {[%clk
0:02:58.2]} 4. d4 {[%clk 0:02:58.3]} 4... Nf6 {[%clk 0:02:57]} 5. Nc3 {[%clk
0:02:58.5]} 5... c5 {[%clk 0:02:53.8]} 6. d5 {[%clk 0:02:58.3]} 6... e6 {[%clk
0:02:54]} 7. Bg5 {[%clk 0:02:57.7]} 7... exd5 {[%clk 0:02:52.1]} 8. Nxd5 {[%clk
0:02:56.7]} 8... Qa5+ {[%clk 0:02:48.7]} 9. Bd2 {[%clk 0:02:53.7]} 9... Qd8
{[%clk 0:02:48]} 10. Bg5 {[%clk 0:02:52.4]} 10... Be7 {[%clk 0:02:41]} 11. Nxe7
{[%clk 0:02:51.5]} 11... Qxe7+ {[%clk 0:02:39.6]} 12. Qe2 {[%clk 0:02:50.3]}
12... Be6 {[%clk 0:02:37.6]} 13. Nf3 {[%clk 0:02:45.9]} 13... O-O {[%clk
0:02:34.1]} 14. O-O-O {[%clk 0:02:45.8]} 14... Nc6 {[%clk 0:02:31.8]} 15. Ne5
{[%clk 0:02:45.4]} 15... Nd4 {[%clk 0:02:26]} 16. Qd3 {[%clk 0:02:31.7]} 16...
Bf5 {[%clk 0:02:23.5]} 17. Qe3 {[%clk 0:02:21.2]} 17... Rfe8 {[%clk 0:02:19.5]}
18. f4 {[%clk 0:02:20.2]} 18... Ng4 {[%clk 0:02:08.4]} 19. Nxg4 {[%clk
0:02:14.2]} 19... Qxe3+ {[%clk 0:02:09.3]} 20. Nxe3 {[%clk 0:02:13.8]} 20...
Rxe3 {[%clk 0:02:07.6]} 21. h3 {[%clk 0:02:05.4]} 21... Rae8 {[%clk 0:02:00.3]}
22. g4 {[%clk 0:02:03.6]} 22... Bc2 {[%clk 0:01:58.2]} 23. Rxd4 {[%clk
0:02:01.4]} 23... cxd4 {[%clk 0:01:49.7]} 24. Kxc2 {[%clk 0:02:01.9]} 24... Re1
{[%clk 0:01:49.2]} 25. f5 {[%clk 0:01:49.7]} 25... Ra1 {[%clk 0:01:40.6]} 26.
Bd2 {[%clk 0:01:43.1]} 26... b6 {[%clk 0:01:14]} 27. Bg2 {[%clk 0:01:38.3]}
27... Rxh1 {[%clk 0:01:09.8]} 28. Bxh1 {[%clk 0:01:37.4]} 28... g6 {[%clk
0:00:59.7]} 29. fxg6 {[%clk 0:01:35.2]} 29... hxg6 {[%clk 0:00:57.9]} 30. Bd5
{[%clk 0:01:35.8]} 30... Re2 {[%clk 0:00:53.4]} 31. Kd3 {[%clk 0:01:19.9]} 31...
Rh2 {[%clk 0:00:51.7]} 32. g5 {[%clk 0:01:16]} 32... a5 {[%clk 0:00:35.1]} 33.
b3 {[%clk 0:01:14.2]} 33... Rxh3+ {[%clk 0:00:32.4]} 34. Kxd4 {[%clk 0:01:14]}
34... Rh2 {[%clk 0:00:33.3]} 35. Kd3 {[%clk 0:01:13.9]} 35... Kf8 {[%clk
0:00:32.6]} 36. a3 {[%clk 0:01:13.4]} 36... Ke7 {[%clk 0:00:30.6]} 37. Be3
{[%clk 0:01:12.7]} 37... Rh3 {[%clk 0:00:28.7]} 38. b4 {[%clk 0:01:12.2]} 38...
axb4 {[%clk 0:00:27.9]} 39. axb4 {[%clk 0:01:12.1]} 39... Kd6 {[%clk 0:00:25]}
40. Ke4 {[%clk 0:01:09.6]} 40... Rh4+ {[%clk 0:00:21.8]} 41. Bf4+ {[%clk
0:01:09.7]} 41... Ke7 {[%clk 0:00:21.1]} 42. c5 {[%clk 0:01:02.5]} 42... bxc5
{[%clk 0:00:19.9]} 43. bxc5 {[%clk 0:01:02.8]} 43... f6 {[%clk 0:00:19.8]} 44.
gxf6+ {[%clk 0:01:03.2]} 44... Kxf6 {[%clk 0:00:20]} 45. c6 {[%clk 0:01:03.8]}
45... g5 {[%clk 0:00:14.7]} 46. c7 {[%clk 0:01:00.9]} 46... Rxf4+ {[%clk
0:00:09.7]} 47. Kd3 {[%clk 0:01:01]} 47... Ke5 {[%clk 0:00:09.4]} 48. c8=Q
{[%clk 0:00:52.7]} 48... Kxd5 {[%clk 0:00:08.9]} 49. Qg8+ {[%clk 0:00:52.2]}
49... Ke5 {[%clk 0:00:07.6]} 50. Qxg5+ {[%clk 0:00:52.1]} 50... Rf5 {[%clk
0:00:08.5]} 51. Qe7+ {[%clk 0:00:52.3]} 51... Kf4 {[%clk 0:00:08.6]} 52. Qh4+
{[%clk 0:00:49.4]} 52... Ke5 {[%clk 0:00:08]} 53. Ke3 {[%clk 0:00:48]} 53... Ke6
{[%clk 0:00:08]} 54. Qh6+ {[%clk 0:00:46.2]} 54... Ke5 {[%clk 0:00:07.1]} 55.
Qh8+ {[%clk 0:00:44.7]} 55... Ke6 {[%clk 0:00:06.7]} 56. Ke4 {[%clk 0:00:45.1]}
56... Rf7 {[%clk 0:00:06.9]} 57. Qg8 {[%clk 0:00:44.7]} 57... Ke7 {[%clk
0:00:06.6]} 58. Ke5 {[%clk 0:00:45.1]} 58... Rf6 {[%clk 0:00:03.7]} 59. Qg7+
{[%clk 0:00:42.9]} 59... Rf7 {[%clk 0:00:02.9]} 60. Qg5+ {[%clk 0:00:43.2]}
60... Kf8 {[%clk 0:00:01.9]} 61. Ke6 {[%clk 0:00:42.3]} 1-0

[Event "Late-Titled-Tuesday-Blitz-April-16-2024"]
[Site "Chess.com"]
[Date "2024.04.16"]
[Round "3"]
[White "Kostukov_Alex"]
[Black "MyDream003"]
[Result "1-0"]
[WhiteElo "2322"]
[BlackElo "2787"]
[TimeControl "180+1"]
[EndTime "14:28:29 PDT"]
[Termination "Kostukov_Alex won on time"]

1. g3 {[%clk 0:02:59.8]} 1... d5 {[%clk 0:03:00]} 2. Bg2 {[%clk 0:03:00.2]} 2...
c6 {[%clk 0:03:00.6]} 3. d3 {[%clk 0:03:00.8]} 3... Nf6 {[%clk 0:02:59.4]} 4. e4
{[%clk 0:03:00.8]} 4... dxe4 {[%clk 0:02:54]} 5. dxe4 {[%clk 0:03:01.7]} 5...
Qxd1+ {[%clk 0:02:54.4]} 6. Kxd1 {[%clk 0:03:02.4]} 6... Be6 {[%clk 0:02:48.4]}
7. f3 {[%clk 0:03:02.2]} 7... g6 {[%clk 0:02:44.3]} 8. Be3 {[%clk 0:03:02.2]}
8... Nbd7 {[%clk 0:02:40.8]} 9. Nd2 {[%clk 0:03:00.9]} 9... Bg7 {[%clk 0:02:41]}
10. Bh3 {[%clk 0:02:59.2]} 10... Bxh3 {[%clk 0:02:39]} 11. Nxh3 {[%clk
0:03:00.1]} 11... Ne5 {[%clk 0:02:37]} 12. Ke2 {[%clk 0:02:58.2]} 12... h5
{[%clk 0:02:30.2]} 13. Nf2 {[%clk 0:02:54.7]} 13... Ned7 {[%clk 0:02:19.6]} 14.
a4 {[%clk 0:02:53.8]} 14... a6 {[%clk 0:02:17.4]} 15. a5 {[%clk 0:02:51]} 15...
h4 {[%clk 0:02:04.9]} 16. g4 {[%clk 0:02:49.3]} 16... h3 {[%clk 0:02:05.4]} 17.
Nc4 {[%clk 0:02:42.5]} 17... Rd8 {[%clk 0:01:45]} 18. Ra3 {[%clk 0:02:31.2]}
18... Nf8 {[%clk 0:01:27.4]} 19. Rb3 {[%clk 0:02:28.7]} 19... Ne6 {[%clk
0:01:22.1]} 20. Rxb7 {[%clk 0:02:24.7]} 20... Bh6 {[%clk 0:01:22.1]} 21. Bb6
{[%clk 0:02:18.3]} 21... Nf4+ {[%clk 0:01:03.6]} 22. Kf1 {[%clk 0:02:11.2]}
22... Ra8 {[%clk 0:01:02.5]} 23. Ne5 {[%clk 0:02:02.4]} 23... Bg5 {[%clk
0:00:57.1]} 24. Nxc6 {[%clk 0:02:00.7]} 24... Nd7 {[%clk 0:00:57.5]} 25. Be3
{[%clk 0:01:52.8]} 25... Rc8 {[%clk 0:00:56.5]} 26. Nb4 {[%clk 0:01:40.6]} 26...
Ne5 {[%clk 0:00:52.1]} 27. Bxf4 {[%clk 0:01:15.2]} 27... Bxf4 {[%clk 0:00:53]}
28. Ke2 {[%clk 0:01:15.1]} 28... e6 {[%clk 0:00:40.1]} 29. Nfd3 {[%clk
0:01:04.3]} 29... Nxd3 {[%clk 0:00:39.3]} 30. cxd3 {[%clk 0:01:04.4]} 30... Kf8
{[%clk 0:00:30.7]} 31. d4 {[%clk 0:00:54.7]} 31... Kg7 {[%clk 0:00:30]} 32. Kd3
{[%clk 0:00:53.8]} 32... Rhd8 {[%clk 0:00:29.2]} 33. Nxa6 {[%clk 0:00:50.4]}
33... Ra8 {[%clk 0:00:23.5]} 34. Nc5 {[%clk 0:00:42.8]} 34... Kg8 {[%clk
0:00:20.4]} 35. b4 {[%clk 0:00:41.3]} 35... Be5 {[%clk 0:00:16.2]} 36. Nb3
{[%clk 0:00:40.6]} 36... Bxd4 {[%clk 0:00:15.7]} 37. Nxd4 {[%clk 0:00:38.3]}
37... e5 {[%clk 0:00:16.3]} 38. Kc4 {[%clk 0:00:36.2]} 38... Rxd4+ {[%clk
0:00:13.5]} 39. Kb5 {[%clk 0:00:36.2]} 39... Rd3 {[%clk 0:00:13.8]} 40. Rc1
{[%clk 0:00:23.8]} 40... Rxf3 {[%clk 0:00:12.9]} 41. Rcc7 {[%clk 0:00:22.7]}
41... Rf2 {[%clk 0:00:12.7]} 42. a6 {[%clk 0:00:21.9]} 42... Kg7 {[%clk
0:00:13.1]} 43. a7 {[%clk 0:00:20.9]} 43... Kh6 {[%clk 0:00:08.8]} 44. Rxf7
{[%clk 0:00:19.6]} 44... Ra2 {[%clk 0:00:06.7]} 45. Kb6 {[%clk 0:00:18.8]} 45...
Rb2 {[%clk 0:00:05.6]} 46. b5 {[%clk 0:00:18.8]} 46... Kg5 {[%clk 0:00:05.9]}
47. Rb8 {[%clk 0:00:18.7]} 47... Rxa7 {[%clk 0:00:03.4]} 48. Rxa7 {[%clk
0:00:18.2]} 48... Ra2 {[%clk 0:00:04.2]} 49. Rxa2 {[%clk 0:00:17.9]} 1-0

[Event "Late-Titled-Tuesday-Blitz-April-16-2024"]
[Site "Chess.com"]
[Date "2024.04.16"]
[Round "3"]
[White "MFatigue"]
[Black "Gabrielian_Artur"]
[Result "0-1"]
[WhiteElo "2552"]
[BlackElo "2793"]
[TimeControl "180+1"]
[EndTime "14:28:31 PDT"]
[Termination "Gabrielian_Artur won by resignation"]

1. e4 {[%clk 0:03:00.9]} 1... c5 {[%clk 0:02:59.8]} 2. a3 {[%clk 0:03:01.1]}
2... g6 {[%clk 0:02:59.6]} 3. h4 {[%clk 0:03:01]} 3... h5 {[%clk 0:02:58.7]} 4.
Nc3 {[%clk 0:03:01.7]} 4... Bg7 {[%clk 0:02:57.8]} 5. Bc4 {[%clk 0:03:02.4]}
5... d6 {[%clk 0:02:57.2]} 6. d3 {[%clk 0:03:03]} 6... Nc6 {[%clk 0:02:57.3]} 7.
Nge2 {[%clk 0:03:03.2]} 7... Nf6 {[%clk 0:02:53.2]} 8. Bg5 {[%clk 0:03:03.8]}
8... a6 {[%clk 0:02:37.1]} 9. Ba2 {[%clk 0:03:03.4]} 9... b5 {[%clk 0:02:36.7]}
10. Qd2 {[%clk 0:03:03.9]} 10... Bb7 {[%clk 0:02:36.2]} 11. O-O {[%clk
0:03:03.2]} 11... Qd7 {[%clk 0:02:27.2]} 12. Ng3 {[%clk 0:02:53.5]} 12... Nd4
{[%clk 0:02:24.9]} 13. Rae1 {[%clk 0:02:48.1]} 13... O-O {[%clk 0:02:15.4]} 14.
Nce2 {[%clk 0:02:23.9]} 14... Rac8 {[%clk 0:02:04.5]} 15. f4 {[%clk 0:02:13.2]}
15... Ng4 {[%clk 0:02:02.6]} 16. f5 {[%clk 0:02:06.3]} 16... Kh7 {[%clk
0:01:45.4]} 17. Nf4 {[%clk 0:01:32.5]} 17... c4 {[%clk 0:01:45.2]} 18. c3 {[%clk
0:01:25.2]} 18... Nb3 {[%clk 0:01:44.8]} 19. Bxb3 {[%clk 0:01:24.5]} 19... cxb3
{[%clk 0:01:45.1]} 20. d4 {[%clk 0:00:55.3]} 20... Rc4 {[%clk 0:01:33]} 21. Qe2
{[%clk 0:00:44]} 21... Rg8 {[%clk 0:01:15.9]} 22. Ngxh5 {[%clk 0:00:34.4]} 22...
gxh5 {[%clk 0:01:15.3]} 23. Nxh5 {[%clk 0:00:35.3]} 23... f6 {[%clk 0:00:40.1]}
24. Nxg7 {[%clk 0:00:30.4]} 24... Rxg7 {[%clk 0:00:38.2]} 25. Qxg4 {[%clk
0:00:29.7]} 25... Kg8 {[%clk 0:00:30.1]} 26. Qh5 {[%clk 0:00:21.3]} 26... fxg5
{[%clk 0:00:22.1]} 27. hxg5 {[%clk 0:00:22.2]} 27... e5 {[%clk 0:00:18.9]} 28.
f6 {[%clk 0:00:17.2]} 28... Qf7 {[%clk 0:00:18.8]} 29. Qg4 {[%clk 0:00:01.8]}
29... Bc8 {[%clk 0:00:12.8]} 30. Qh4 {[%clk 0:00:01]} 30... Rh7 {[%clk
0:00:11.6]} 31. Qg3 {[%clk 0:00:01.7]} 31... Qg6 {[%clk 0:00:11.5]} 32. dxe5
{[%clk 0:00:02.4]} 32... Rh5 {[%clk 0:00:11.3]} 33. f7+ {[%clk 0:00:02]} 33...
Kf8 {[%clk 0:00:11.3]} 34. Rf6 {[%clk 0:00:02.2]} 34... Qxg5 {[%clk 0:00:11.4]}
35. Qxg5 {[%clk 0:00:02.3]} 35... Rxg5 {[%clk 0:00:11.3]} 36. exd6 {[%clk
0:00:03.2]} 36... Bd7 {[%clk 0:00:10.8]} 37. e5 {[%clk 0:00:03.7]} 37... Rcg4
{[%clk 0:00:09]} 38. Re2 {[%clk 0:00:04]} 38... Rg6 {[%clk 0:00:09.6]} 39. e6
{[%clk 0:00:03.3]} 39... Rxf6 {[%clk 0:00:08.4]} 40. exd7 {[%clk 0:00:04]} 40...
Rxd6 {[%clk 0:00:08.7]} 41. Re8+ {[%clk 0:00:04.7]} 41... Kxf7 {[%clk
0:00:09.2]} 42. d8=Q {[%clk 0:00:05.6]} 42... Rxd8 {[%clk 0:00:09.6]} 43. Rxd8
{[%clk 0:00:06.5]} 43... Re4 {[%clk 0:00:09.7]} 44. Rd6 {[%clk 0:00:05.6]} 44...
Re2 {[%clk 0:00:09.2]} 45. Rxa6 {[%clk 0:00:06]} 45... Rxb2 {[%clk 0:00:09.5]}
46. Rb6 {[%clk 0:00:06.7]} 46... Rc2 {[%clk 0:00:10]} 47. Rxb5 {[%clk
0:00:06.8]} 47... b2 {[%clk 0:00:10.6]} 48. a4 {[%clk 0:00:07.7]} 48... Rc1+
{[%clk 0:00:09.3]} 49. Kh2 {[%clk 0:00:08.4]} 49... b1=Q {[%clk 0:00:09.8]} 50.
Rxb1 {[%clk 0:00:09.1]} 50... Rxb1 {[%clk 0:00:10.4]} 0-1

[Event "Late-Titled-Tuesday-Blitz-April-16-2024"]
[Site "Chess.com"]
[Date "2024.04.16"]
[Round "3"]
[White "Sjakkerntobi"]
[Black "Allion2017"]
[Result "1-0"]
[WhiteElo "2507"]
[BlackElo "2275"]
[TimeControl "180+1"]
[EndTime "14:28:31 PDT"]
[Termination "Sjakkerntobi won by resignation"]

1. e4 {[%clk 0:03:00.9]} 1... c5 {[%clk 0:02:59]} 2. Nf3 {[%clk 0:03:00.9]} 2...
d6 {[%clk 0:02:59.1]} 3. Bb5+ {[%clk 0:03:01.5]} 3... Bd7 {[%clk 0:02:58.4]} 4.
Bxd7+ {[%clk 0:03:01.6]} 4... Qxd7 {[%clk 0:02:59]} 5. O-O {[%clk 0:03:02.5]}
5... Nc6 {[%clk 0:02:58.9]} 6. c3 {[%clk 0:03:02.5]} 6... Nf6 {[%clk 0:02:58.9]}
7. Re1 {[%clk 0:03:01.3]} 7... e6 {[%clk 0:02:58.5]} 8. d4 {[%clk 0:03:01.7]}
8... cxd4 {[%clk 0:02:59.1]} 9. cxd4 {[%clk 0:03:02.6]} 9... d5 {[%clk
0:02:59.6]} 10. e5 {[%clk 0:03:02.6]} 10... Ne4 {[%clk 0:03:00.2]} 11. Nbd2
{[%clk 0:03:03.3]} 11... Nxd2 {[%clk 0:02:59.3]} 12. Bxd2 {[%clk 0:03:04.2]}
12... Be7 {[%clk 0:02:58.3]} 13. a3 {[%clk 0:03:00.7]} 13... O-O {[%clk
0:02:54.8]} 14. Re3 {[%clk 0:03:00.7]} 14... f6 {[%clk 0:02:48.6]} 15. Bc3
{[%clk 0:02:54.3]} 15... f5 {[%clk 0:02:46.6]} 16. Ne1 {[%clk 0:02:50.5]} 16...
f4 {[%clk 0:02:32.5]} 17. Rh3 {[%clk 0:02:49.4]} 17... Rf5 {[%clk 0:02:30.9]}
18. Nd3 {[%clk 0:02:42.5]} 18... Raf8 {[%clk 0:02:29.3]} 19. Qg4 {[%clk
0:02:29.9]} 19... f3 {[%clk 0:02:19.2]} 20. Rxf3 {[%clk 0:02:13.8]} 20... Rxf3
{[%clk 0:02:17.9]} 21. gxf3 {[%clk 0:02:14.7]} 21... Rf5 {[%clk 0:02:15.6]} 22.
Kh1 {[%clk 0:02:03.6]} 22... Rg5 {[%clk 0:02:03.6]} 23. Qh3 {[%clk 0:02:01.7]}
23... Bf8 {[%clk 0:01:50.5]} 24. f4 {[%clk 0:02:00.5]} 24... Rf5 {[%clk
0:01:50.4]} 25. Rg1 {[%clk 0:01:59.8]} 25... Qf7 {[%clk 0:01:47.8]} 26. Rg5
{[%clk 0:01:47.4]} 26... Ne7 {[%clk 0:01:45.9]} 27. Rg1 {[%clk 0:01:32.4]} 27...
Rh5 {[%clk 0:01:40.3]} 28. Qg4 {[%clk 0:01:31.4]} 28... Nf5 {[%clk 0:01:38.1]}
29. Nc1 {[%clk 0:01:14]} 29... Rh4 {[%clk 0:01:36.5]} 30. Qf3 {[%clk 0:01:14.2]}
30... Rh6 {[%clk 0:01:11.6]} 31. Ne2 {[%clk 0:01:10.9]} 31... Be7 {[%clk
0:01:03.8]} 32. Ng3 {[%clk 0:01:07.7]} 32... Nh4 {[%clk 0:01:02.4]} 33. Qd3
{[%clk 0:00:56.2]} 33... Qxf4 {[%clk 0:00:59.2]} 34. Bd2 {[%clk 0:00:48.9]}
34... Qf3+ {[%clk 0:00:56.1]} 35. Qxf3 {[%clk 0:00:48.3]} 35... Nxf3 {[%clk
0:00:56.8]} 36. Bxh6 {[%clk 0:00:48]} 36... Nxg1 {[%clk 0:00:57]} 37. Kxg1
{[%clk 0:00:38.2]} 37... gxh6 {[%clk 0:00:56.8]} 38. Kf1 {[%clk 0:00:37.6]}
38... Bg5 {[%clk 0:00:56]} 39. a4 {[%clk 0:00:33.4]} 39... Bc1 {[%clk
0:00:51.4]} 40. b3 {[%clk 0:00:33.5]} 40... Bb2 {[%clk 0:00:49.3]} 41. Ne2
{[%clk 0:00:33.2]} 41... Kf7 {[%clk 0:00:49.8]} 42. Kg2 {[%clk 0:00:30.2]} 42...
Kg6 {[%clk 0:00:48]} 43. Kf3 {[%clk 0:00:30.5]} 43... Kf5 {[%clk 0:00:47.7]} 44.
h4 {[%clk 0:00:30.5]} 44... b6 {[%clk 0:00:42.6]} 45. Ng3+ {[%clk 0:00:30.3]}
45... Kg6 {[%clk 0:00:42.6]} 46. Ke3 {[%clk 0:00:30.9]} 46... Bc3 {[%clk
0:00:38.4]} 47. f4 {[%clk 0:00:29.2]} 47... Bb4 {[%clk 0:00:35.3]} 48. h5+
{[%clk 0:00:28.6]} 48... Kf7 {[%clk 0:00:34.3]} 49. f5 {[%clk 0:00:29.2]} 49...
Be1 {[%clk 0:00:27.2]} 50. fxe6+ {[%clk 0:00:21.1]} 50... Kxe6 {[%clk
0:00:24.7]} 51. Ne2 {[%clk 0:00:20.2]} 51... a6 {[%clk 0:00:20.6]} 52. Nf4+
{[%clk 0:00:20.4]} 52... Kf5 {[%clk 0:00:17.3]} 53. Nxd5 {[%clk 0:00:21.3]}
53... Kg5 {[%clk 0:00:17.3]} 54. e6 {[%clk 0:00:21.7]} 1-0

[Event "Late-Titled-Tuesday-Blitz-April-16-2024"]
[Site "Chess.com"]
[Date "2024.04.16"]
[Round "3"]
[White "AktilekAskarovich"]
[Black "Vladimir_2020"]
[Result "1/2-1/2"]
[WhiteElo "2496"]
[BlackElo "2755"]
[TimeControl "180+1"]
[EndTime "14:28:32 PDT"]
[Termination "Game drawn - insufficient material"]

1. d4 {[%clk 0:02:59.8]} 1... d5 {[%clk 0:02:59.3]} 2. c4 {[%clk 0:03:00]} 2...
c6 {[%clk 0:02:59.4]} 3. Nf3 {[%clk 0:03:00]} 3... Nf6 {[%clk 0:02:59.5]} 4. Nc3
{[%clk 0:03:00.2]} 4... a6 {[%clk 0:02:59.5]} 5. cxd5 {[%clk 0:02:58.6]} 5...
cxd5 {[%clk 0:02:58.9]} 6. Bf4 {[%clk 0:02:59]} 6... Nc6 {[%clk 0:02:59.1]} 7.
e3 {[%clk 0:02:59.2]} 7... Bg4 {[%clk 0:02:56.9]} 8. Bd3 {[%clk 0:02:58.6]} 8...
e6 {[%clk 0:02:51.2]} 9. O-O {[%clk 0:02:58.4]} 9... Bd6 {[%clk 0:02:50.5]} 10.
h3 {[%clk 0:02:58.8]} 10... Bxf4 {[%clk 0:02:37.1]} 11. hxg4 {[%clk 0:02:57.9]}
11... Bd6 {[%clk 0:02:37]} 12. Nd2 {[%clk 0:02:48.1]} 12... h5 {[%clk
0:02:25.2]} 13. g5 {[%clk 0:02:45.4]} 13... Ng4 {[%clk 0:02:23.4]} 14. Nf3
{[%clk 0:02:33.5]} 14... Be7 {[%clk 0:02:05.3]} 15. e4 {[%clk 0:02:17.3]} 15...
Bxg5 {[%clk 0:01:51.1]} 16. exd5 {[%clk 0:02:17.2]} 16... exd5 {[%clk
0:01:51.2]} 17. Re1+ {[%clk 0:02:17.7]} 17... Be7 {[%clk 0:01:51.1]} 18. Qb3
{[%clk 0:02:17.7]} 18... O-O {[%clk 0:01:46.8]} 19. Qxb7 {[%clk 0:02:14.2]}
19... Rc8 {[%clk 0:01:45.5]} 20. Bxa6 {[%clk 0:01:55]} 20... Rc7 {[%clk
0:01:42.1]} 21. Qb6 {[%clk 0:01:55.1]} 21... Bf6 {[%clk 0:01:36.5]} 22. Nxd5
{[%clk 0:01:42.2]} 22... Qxd5 {[%clk 0:01:30.6]} 23. Qxc7 {[%clk 0:01:42.1]}
23... Nxd4 {[%clk 0:01:30.7]} 24. Qf4 {[%clk 0:01:15.7]} 24... Nc2 {[%clk
0:01:12.6]} 25. Qd2 {[%clk 0:00:40.8]} 25... Qxd2 {[%clk 0:01:05.8]} 26. Nxd2
{[%clk 0:00:41.7]} 26... Nxa1 {[%clk 0:01:05.4]} 27. Rxa1 {[%clk 0:00:40.6]}
27... Bxb2 {[%clk 0:01:02.7]} 28. Rd1 {[%clk 0:00:23.5]} 28... Rd8 {[%clk
0:00:29.6]} 29. Be2 {[%clk 0:00:23.4]} 29... Ne5 {[%clk 0:00:28.9]} 30. Nf3
{[%clk 0:00:20.4]} 30... Rxd1+ {[%clk 0:00:26.7]} 31. Bxd1 {[%clk 0:00:20.6]}
31... Nd3 {[%clk 0:00:24.6]} 32. Be2 {[%clk 0:00:19.1]} 32... Nc5 {[%clk
0:00:23.4]} 33. Nd2 {[%clk 0:00:18.5]} 33... g6 {[%clk 0:00:22.8]} 34. Nc4
{[%clk 0:00:18.7]} 34... Bd4 {[%clk 0:00:22.6]} 35. Kf1 {[%clk 0:00:19.2]} 35...
Ne4 {[%clk 0:00:22.4]} 36. f3 {[%clk 0:00:15.2]} 36... Nc3 {[%clk 0:00:22.4]}
37. a3 {[%clk 0:00:14.3]} 37... Kg7 {[%clk 0:00:22.4]} 38. Bd3 {[%clk
0:00:14.4]} 38... f5 {[%clk 0:00:21.3]} 39. Nd6 {[%clk 0:00:13.5]} 39... Kf6
{[%clk 0:00:20.8]} 40. Nb5 {[%clk 0:00:13.9]} 40... Nxb5 {[%clk 0:00:17.4]} 41.
Bxb5 {[%clk 0:00:14.8]} 41... Bb6 {[%clk 0:00:17.6]} 42. a4 {[%clk 0:00:15.2]}
42... h4 {[%clk 0:00:16.5]} 43. Be8 {[%clk 0:00:15.4]} 43... g5 {[%clk
0:00:16.4]} 44. Bc6 {[%clk 0:00:12.9]} 44... Ke5 {[%clk 0:00:16.4]} 45. Bd7
{[%clk 0:00:12.8]} 45... Kf4 {[%clk 0:00:16.5]} 46. Bc8 {[%clk 0:00:13]} 46...
g4 {[%clk 0:00:16.4]} 47. fxg4 {[%clk 0:00:13]} 47... fxg4 {[%clk 0:00:16.7]}
48. Bb7 {[%clk 0:00:13.9]} 48... Kg3 {[%clk 0:00:16.9]} 49. Ba8 {[%clk
0:00:13.9]} 49... h3 {[%clk 0:00:17.1]} 50. gxh3 {[%clk 0:00:14.8]} 50... gxh3
{[%clk 0:00:17.5]} 51. Ke2 {[%clk 0:00:15.3]} 51... h2 {[%clk 0:00:17.9]} 52.
Kd3 {[%clk 0:00:15.6]} 52... Ba5 {[%clk 0:00:18.1]} 53. Kc4 {[%clk 0:00:16.1]}
53... Kf2 {[%clk 0:00:18.3]} 54. Kb5 {[%clk 0:00:16.4]} 54... Be1 {[%clk
0:00:18.8]} 55. a5 {[%clk 0:00:16.7]} 55... Bxa5 {[%clk 0:00:19.1]} 56. Kxa5
{[%clk 0:00:17.6]} 56... h1=Q {[%clk 0:00:19.2]} 57. Bxh1 {[%clk 0:00:18.2]}
1/2-1/2

[Event "Late-Titled-Tuesday-Blitz-April-16-2024"]
[Site "Chess.com"]
[Date "2024.04.16"]
[Round "3"]
[White "TheAlienParty"]
[Black "Mikhail_Golubev"]
[Result "0-1"]
[WhiteElo "2404"]
[BlackElo "2594"]
[TimeControl "180+1"]
[EndTime "14:28:33 PDT"]
[Termination "Mikhail_Golubev won by resignation"]

1. Nf3 {[%clk 0:02:59.8]} 1... d6 {[%clk 0:02:59.6]} 2. d4 {[%clk 0:02:58.4]}
2... Nf6 {[%clk 0:02:59.5]} 3. c4 {[%clk 0:02:58]} 3... g6 {[%clk 0:02:58.5]} 4.
g3 {[%clk 0:02:57.9]} 4... Bg7 {[%clk 0:02:58.9]} 5. Bg2 {[%clk 0:02:58.1]} 5...
O-O {[%clk 0:02:59.3]} 6. O-O {[%clk 0:02:58.1]} 6... c6 {[%clk 0:02:59]} 7. Nc3
{[%clk 0:02:54.7]} 7... Bf5 {[%clk 0:02:59.3]} 8. Qb3 {[%clk 0:02:52.4]} 8...
Qc8 {[%clk 0:02:55.5]} 9. Nh4 {[%clk 0:02:46.5]} 9... Be6 {[%clk 0:02:26.2]} 10.
d5 {[%clk 0:02:46]} 10... Bh3 {[%clk 0:02:14.8]} 11. Bxh3 {[%clk 0:02:41.8]}
11... Qxh3 {[%clk 0:02:15.7]} 12. Qxb7 {[%clk 0:02:41.7]} 12... Nbd7 {[%clk
0:02:00.1]} 13. f3 {[%clk 0:02:37.5]} 13... cxd5 {[%clk 0:01:52.2]} 14. Nxd5
{[%clk 0:02:35]} 14... Nxd5 {[%clk 0:01:44.9]} 15. Qxd5 {[%clk 0:02:34.4]} 15...
Rac8 {[%clk 0:01:27.2]} 16. Rb1 {[%clk 0:02:29.9]} 16... Nb6 {[%clk 0:01:20.7]}
17. Qe4 {[%clk 0:02:29.4]} 17... Rxc4 {[%clk 0:01:14]} 18. Qxe7 {[%clk
0:02:29.1]} 18... Bd4+ {[%clk 0:01:05.6]} 19. e3 {[%clk 0:02:28.2]} 19... Nd5
{[%clk 0:00:41.6]} 20. Qe4 {[%clk 0:02:23.5]} 20... Bxe3+ {[%clk 0:00:40]} 21.
Qxe3 {[%clk 0:02:09]} 21... Nxe3 {[%clk 0:00:40]} 22. Bxe3 {[%clk 0:02:08.9]}
22... Re8 {[%clk 0:00:35.6]} 23. Bxa7 {[%clk 0:02:06.7]} 23... Re2 {[%clk
0:00:31.2]} 24. Rf2 {[%clk 0:02:06.5]} 24... Rxf2 {[%clk 0:00:27.3]} 25. Bxf2
{[%clk 0:02:05.7]} 25... g5 {[%clk 0:00:27.6]} 26. Ng2 {[%clk 0:02:04.3]} 26...
Qf5 {[%clk 0:00:26.8]} 27. Rd1 {[%clk 0:01:58.2]} 27... Qxf3 {[%clk 0:00:26.4]}
28. Rxd6 {[%clk 0:01:57.7]} 28... Rc2 {[%clk 0:00:22.3]} 29. Rd8+ {[%clk
0:01:56.5]} 29... Kg7 {[%clk 0:00:22.3]} 30. Bd4+ {[%clk 0:01:51.7]} 30... f6
{[%clk 0:00:21.6]} 31. Rd7+ {[%clk 0:01:47.3]} 31... Kg6 {[%clk 0:00:19.3]} 32.
Ne1 {[%clk 0:01:41.9]} 32... Rc1 {[%clk 0:00:17.8]} 33. Bf2 {[%clk 0:01:40.1]}
33... Qe2 {[%clk 0:00:16.3]} 34. a4 {[%clk 0:00:41.2]} 34... Rxe1+ {[%clk
0:00:15.4]} 35. Bxe1 {[%clk 0:00:41.2]} 35... Qxe1+ {[%clk 0:00:16.3]} 36. Kg2
{[%clk 0:00:41.5]} 36... Qe2+ {[%clk 0:00:15.7]} 37. Kg1 {[%clk 0:00:41.3]}
37... Qxb2 {[%clk 0:00:14.6]} 38. a5 {[%clk 0:00:37.5]} 38... Qa1+ {[%clk
0:00:11.5]} 39. Kf2 {[%clk 0:00:37.4]} 39... Qxa5 {[%clk 0:00:12]} 40. Rd3
{[%clk 0:00:36.1]} 40... Qf5+ {[%clk 0:00:11.4]} 41. Ke3 {[%clk 0:00:35.6]}
41... Qh3 {[%clk 0:00:10.7]} 42. Rd2 {[%clk 0:00:35.5]} 42... h5 {[%clk
0:00:11]} 43. Rf2 {[%clk 0:00:35.4]} 43... h4 {[%clk 0:00:11.1]} 44. Kf3 {[%clk
0:00:35.7]} 44... hxg3 {[%clk 0:00:08]} 45. hxg3 {[%clk 0:00:35.4]} 45... f5
{[%clk 0:00:08.3]} 46. Rg2 {[%clk 0:00:33.9]} 46... Qg4+ {[%clk 0:00:08.1]} 47.
Kf2 {[%clk 0:00:33.9]} 47... f4 {[%clk 0:00:07.3]} 48. gxf4 {[%clk 0:00:33.5]}
48... Qxf4+ {[%clk 0:00:07.6]} 49. Ke2 {[%clk 0:00:33.5]} 49... g4 {[%clk
0:00:07.6]} 50. Ke1 {[%clk 0:00:33.4]} 50... Qe4+ {[%clk 0:00:06.9]} 51. Re2
{[%clk 0:00:33.3]} 51... Qh1+ {[%clk 0:00:07.3]} 52. Kf2 {[%clk 0:00:33.4]}
52... Qf3+ {[%clk 0:00:07.4]} 53. Ke1 {[%clk 0:00:33.4]} 53... g3 {[%clk
0:00:08]} 54. Re6+ {[%clk 0:00:33.4]} 54... Kf7 {[%clk 0:00:08.1]} 55. Re2
{[%clk 0:00:33.1]} 55... g2 {[%clk 0:00:07.2]} 56. Rf2 {[%clk 0:00:33.2]} 56...
g1=R+ {[%clk 0:00:05.9]} 57. Kd2 {[%clk 0:00:31.1]} 57... Qxf2+ {[%clk
0:00:06.1]} 0-1